[Event "*** Titled Tuesday Blitz"]
[Site "Chess.com"]
[Date "2020.01.07"]
[Round "5"]
[White "HouseOfDurin"]
[Black "coolthing"]
[Result "1/2-1/2"]
[WhiteElo "2131"]
[BlackElo "2343"]
[TimeControl "180+2"]
[EndTime "14:12:53 PST"]
[Termination "Game drawn by agreement"]

1. d4 {[%clk 0:03:01.9]} 1... Nf6 {[%clk 0:03:01.9]} 2. Bg5 {[%clk 0:03:03.3]}
2... g6 {[%clk 0:02:59.3]} 3. Bxf6 {[%clk 0:03:04.4]} 3... exf6 {[%clk
0:03:01.1]} 4. c4 {[%clk 0:03:04.5]} 4... Bg7 {[%clk 0:03:01.6]} 5. Nc3 {[%clk
0:03:06]} 5... f5 {[%clk 0:03:02.3]} 6. g3 {[%clk 0:03:07.6]} 6... O-O {[%clk
0:03:03.3]} 7. Bg2 {[%clk 0:03:08.9]} 7... d6 {[%clk 0:03:04.7]} 8. e3 {[%clk
0:03:10.2]} 8... Nc6 {[%clk 0:03:05.5]} 9. Nge2 {[%clk 0:03:11.4]} 9... Re8
{[%clk 0:03:03.6]} 10. O-O {[%clk 0:03:12.1]} 10... Bd7 {[%clk 0:03:04.3]} 11.
a3 {[%clk 0:02:56.5]} 11... Na5 {[%clk 0:02:56]} 12. b4 {[%clk 0:02:50.9]} 12...
Nxc4 {[%clk 0:02:48]} 13. Bxb7 {[%clk 0:02:51.5]} 13... Rb8 {[%clk 0:02:48.9]}
14. Bd5 {[%clk 0:02:35.3]} 14... Nb6 {[%clk 0:02:49.2]} 15. Bg2 {[%clk 0:02:32]}
15... Qc8 {[%clk 0:02:27.7]} 16. Rc1 {[%clk 0:02:27.3]} 16... Qa6 {[%clk
0:02:26]} 17. Nd5 {[%clk 0:01:44.2]} 17... Nxd5 {[%clk 0:02:22.2]} 18. Bxd5
{[%clk 0:01:46.1]} 18... Bb5 {[%clk 0:02:16.3]} 19. Re1 {[%clk 0:01:36.3]} 19...
c6 {[%clk 0:02:13.5]} 20. Bf3 {[%clk 0:01:18.7]} 20... d5 {[%clk 0:02:13]} 21.
Rc3 {[%clk 0:01:08.6]} 21... Bc4 {[%clk 0:02:00.9]} 22. Nc1 {[%clk 0:01:06.9]}
22... Qb5 {[%clk 0:01:55.2]} 23. Be2 {[%clk 0:01:03.2]} 23... a5 {[%clk
0:01:45.4]} 24. Bxc4 {[%clk 0:00:59.6]} 24... dxc4 {[%clk 0:01:46.4]} 25. bxa5
{[%clk 0:00:56.6]} 25... c5 {[%clk 0:01:41.2]} 26. Ne2 {[%clk 0:00:47.2]} 26...
cxd4 {[%clk 0:00:56.1]} 27. Nxd4 {[%clk 0:00:49.1]} 27... Qxa5 {[%clk
0:00:57.3]} 28. Rxc4 {[%clk 0:00:24]} 28... Rb2 {[%clk 0:00:55.5]} 29. Re2
{[%clk 0:00:18.1]} 29... Qxa3 {[%clk 0:00:46.3]} 30. Rxb2 {[%clk 0:00:17.7]}
30... Qxb2 {[%clk 0:00:47.2]} 31. Kg2 {[%clk 0:00:17]} 31... Rd8 {[%clk
0:00:46.1]} 32. Qc2 {[%clk 0:00:15.6]} 32... Bxd4 {[%clk 0:00:44.1]} 33. exd4
{[%clk 0:00:16.6]} 33... Qxc2 {[%clk 0:00:44.4]} 34. Rxc2 {[%clk 0:00:17.5]}
34... Rxd4 {[%clk 0:00:46.3]} 35. h4 {[%clk 0:00:18.4]} 35... Kg7 {[%clk
0:00:44.8]} 36. Kf3 {[%clk 0:00:15.1]} 36... h6 {[%clk 0:00:45.7]} 37. Rc5
{[%clk 0:00:11.7]} 37... Rd6 {[%clk 0:00:45]} 38. h5 {[%clk 0:00:10.3]} 38...
Kf6 {[%clk 0:00:40.2]} 39. hxg6 {[%clk 0:00:09]} 39... fxg6 {[%clk 0:00:41.3]}
40. Rc8 {[%clk 0:00:09.3]} 40... h5 {[%clk 0:00:40.4]} 41. Rf8+ {[%clk
0:00:09.5]} 41... Kg5 {[%clk 0:00:40.2]} 42. Rc8 {[%clk 0:00:09.3]} 42... Ra6
{[%clk 0:00:40.8]} 43. Rg8 {[%clk 0:00:09.6]} 43... Rb6 {[%clk 0:00:37.9]} 44.
Rg7 {[%clk 0:00:09.8]} 44... Kf6 {[%clk 0:00:35.8]} 45. Rg8 {[%clk 0:00:10.6]}
45... Rb3+ {[%clk 0:00:34.8]} 46. Kg2 {[%clk 0:00:11.4]} 46... Ra3 {[%clk
0:00:30.2]} 47. Rf8+ {[%clk 0:00:11.8]} 47... Kg7 {[%clk 0:00:30.8]} 48. Rc8
{[%clk 0:00:12.2]} 48... Kh6 {[%clk 0:00:31.4]} 49. Rc6 {[%clk 0:00:12.8]} 49...
Kg5 {[%clk 0:00:27.7]} 50. Rb6 {[%clk 0:00:13.5]} 50... Ra7 {[%clk 0:00:25.5]}
51. Rc6 {[%clk 0:00:14.3]} 51... Rh7 {[%clk 0:00:25.5]} 52. Rb6 {[%clk
0:00:14.7]} 52... h4 {[%clk 0:00:21.4]} 53. gxh4+ {[%clk 0:00:16.6]} 53... Rxh4
{[%clk 0:00:21.9]} 54. Kg3 {[%clk 0:00:17.4]} 54... Rg4+ {[%clk 0:00:22.2]} 55.
Kf3 {[%clk 0:00:18.2]} 55... Rf4+ {[%clk 0:00:23.2]} 56. Kg3 {[%clk 0:00:19.1]}
56... Ra4 {[%clk 0:00:24.2]} 57. Rb3 {[%clk 0:00:12.4]} 57... f4+ {[%clk
0:00:19.6]} 58. Kf3 {[%clk 0:00:12]} 58... Ra5 {[%clk 0:00:19.4]} 59. Rd3 {[%clk
0:00:10.2]} 59... Rf5 {[%clk 0:00:19.1]} 60. Rd4 {[%clk 0:00:09.9]} 60... Rf6
{[%clk 0:00:12.7]} 61. Re4 {[%clk 0:00:10.4]} 61... Rf8 {[%clk 0:00:12.1]} 62.
Re5+ {[%clk 0:00:09.6]} 62... Kh4 {[%clk 0:00:12.1]} 63. Re7 {[%clk 0:00:07.3]}
63... Rf5 {[%clk 0:00:08.2]} 64. Rh7+ {[%clk 0:00:07.4]} 64... Kg5 {[%clk
0:00:09.2]} 65. Rc7 {[%clk 0:00:05.7]} 65... Ra5 {[%clk 0:00:08.4]} 66. Rf7
{[%clk 0:00:05.1]} 66... Ra3+ {[%clk 0:00:09.1]} 67. Kg2 {[%clk 0:00:06.2]}
67... Kg4 {[%clk 0:00:08.9]} 68. Rd7 {[%clk 0:00:05]} 68... f3+ {[%clk
0:00:08.4]} 69. Kh2 {[%clk 0:00:06.2]} 69... Ra4 {[%clk 0:00:07.3]} 70. Rc7
{[%clk 0:00:05.2]} 70... g5 {[%clk 0:00:08.2]} 71. Rd7 {[%clk 0:00:05.7]} 71...
Ra2 {[%clk 0:00:07.4]} 72. Kg1 {[%clk 0:00:06.3]} 72... Ra4 {[%clk 0:00:04.2]}
73. Rc7 {[%clk 0:00:06.2]} 73... Re4 {[%clk 0:00:05]} 74. Rd7 {[%clk 0:00:06.1]}
74... Re6 {[%clk 0:00:05.7]} 75. Rd4+ {[%clk 0:00:06.6]} 75... Kh3 {[%clk
0:00:06.8]} 76. Rd1 {[%clk 0:00:06.9]} 76... g4 {[%clk 0:00:07.4]} 77. Rc1
{[%clk 0:00:07.2]} 77... Ra6 {[%clk 0:00:08.2]} 78. Rd1 {[%clk 0:00:08]} 78...
Ra2 {[%clk 0:00:09.6]} 79. Rc1 {[%clk 0:00:08.9]} 79... g3 {[%clk 0:00:10.4]}
80. fxg3 {[%clk 0:00:09.6]} 80... Kxg3 {[%clk 0:00:10.3]} 81. Rd1 {[%clk
0:00:09.8]} 81... Rg2+ {[%clk 0:00:11]} 82. Kf1 {[%clk 0:00:10.9]} 82... Kh2
{[%clk 0:00:11.1]} 83. Rd7 {[%clk 0:00:10.3]} 83... Ra2 {[%clk 0:00:08.7]} 84.
Rh7+ {[%clk 0:00:10.6]} 84... Kg3 {[%clk 0:00:10]} 85. Rg7+ {[%clk 0:00:11.8]}
85... Kf4 {[%clk 0:00:11.2]} 86. Rf7+ {[%clk 0:00:13.1]} 86... Kg4 {[%clk
0:00:12.4]} 87. Rg7+ {[%clk 0:00:14]} 87... Kf5 {[%clk 0:00:12.8]} 88. Rf7+
{[%clk 0:00:12.9]} 88... Ke4 {[%clk 0:00:13.6]} 89. Re7+ {[%clk 0:00:13.8]}
89... Kf4 {[%clk 0:00:14.9]} 1/2-1/2

[Event "*** Titled Tuesday Blitz"]
[Site "Chess.com"]
[Date "2020.01.07"]
[Round "5"]
[White "SavelievAlexei"]
[Black "AndrewMaco"]
[Result "0-1"]
[WhiteElo "2320"]
[BlackElo "2625"]
[TimeControl "180+2"]
[EndTime "14:13:00 PST"]
[Termination "AndrewMaco won by checkmate"]

1. e4 {[%clk 0:03:01.9]} 1... c6 {[%clk 0:02:39.8]} 2. d4 {[%clk 0:03:02.4]}
2... d5 {[%clk 0:02:41.7]} 3. exd5 {[%clk 0:03:03.5]} 3... cxd5 {[%clk 0:02:39]}
4. Bd3 {[%clk 0:03:04.3]} 4... Nc6 {[%clk 0:02:38.8]} 5. c3 {[%clk 0:03:05.5]}
5... Nf6 {[%clk 0:02:38]} 6. Bf4 {[%clk 0:03:06]} 6... Bg4 {[%clk 0:02:38.1]} 7.
Qb3 {[%clk 0:03:05.9]} 7... Qd7 {[%clk 0:02:39.2]} 8. Nd2 {[%clk 0:03:05.8]}
8... e6 {[%clk 0:02:39.3]} 9. Ngf3 {[%clk 0:03:06.8]} 9... Bxf3 {[%clk
0:02:40.8]} 10. Nxf3 {[%clk 0:03:06.9]} 10... Bd6 {[%clk 0:02:42.7]} 11. Bxd6
{[%clk 0:03:07.8]} 11... Qxd6 {[%clk 0:02:44.6]} 12. O-O {[%clk 0:03:08.5]}
12... O-O {[%clk 0:02:46.1]} 13. Rfe1 {[%clk 0:03:06.8]} 13... Qc7 {[%clk
0:02:45.3]} 14. Rac1 {[%clk 0:02:51]} 14... Rab8 {[%clk 0:02:40.5]} 15. Qd1
{[%clk 0:02:11.8]} 15... b5 {[%clk 0:02:39.3]} 16. Ne5 {[%clk 0:02:10.6]} 16...
Nxe5 {[%clk 0:02:33.4]} 17. Rxe5 {[%clk 0:01:32]} 17... g6 {[%clk 0:02:30.9]}
18. Re3 {[%clk 0:01:25.4]} 18... Kg7 {[%clk 0:02:26.1]} 19. h4 {[%clk
0:01:17.4]} 19... h5 {[%clk 0:02:25.6]} 20. a3 {[%clk 0:01:00.1]} 20... Ng4
{[%clk 0:02:01.5]} 21. Rh3 {[%clk 0:00:59.6]} 21... Qf4 {[%clk 0:02:01]} 22. Qf1
{[%clk 0:00:52.6]} 22... a6 {[%clk 0:01:50.3]} 23. Re1 {[%clk 0:00:47.3]} 23...
Rfe8 {[%clk 0:01:44.8]} 24. Qe2 {[%clk 0:00:19.1]} 24... e5 {[%clk 0:01:31.6]}
25. Qf3 {[%clk 0:00:13.1]} 25... Qd2 {[%clk 0:01:20.3]} 26. Qe2 {[%clk
0:00:11.2]} 26... Qxe2 {[%clk 0:01:15.6]} 27. Rxe2 {[%clk 0:00:11.8]} 27... e4
{[%clk 0:01:14.7]} 28. Bc2 {[%clk 0:00:12.3]} 28... f5 {[%clk 0:01:14.7]} 29.
Bb3 {[%clk 0:00:11.4]} 29... Nf6 {[%clk 0:01:13.8]} 30. g3 {[%clk 0:00:12.7]}
30... a5 {[%clk 0:01:06.1]} 31. Kg2 {[%clk 0:00:13.8]} 31... Red8 {[%clk
0:01:00.4]} 32. Rh1 {[%clk 0:00:14.2]} 32... Nh7 {[%clk 0:00:58.9]} 33. Rc1
{[%clk 0:00:14.3]} 33... Nf8 {[%clk 0:00:59.4]} 34. Kf1 {[%clk 0:00:06.6]} 34...
Ne6 {[%clk 0:01:00.3]} 35. Ree1 {[%clk 0:00:07.1]} 35... Rb6 {[%clk 0:00:58.4]}
36. Red1 {[%clk 0:00:07.8]} 36... f4 {[%clk 0:00:59.3]} 37. Ke2 {[%clk
0:00:07.5]} 37... f3+ {[%clk 0:00:58.8]} 38. Ke3 {[%clk 0:00:07.9]} 38... Kf6
{[%clk 0:01:00.3]} 39. Rg1 {[%clk 0:00:08.1]} 39... Ng7 {[%clk 0:01:00.4]} 40.
g4 {[%clk 0:00:08.5]} 40... hxg4 {[%clk 0:01:01]} 41. Rxg4 {[%clk 0:00:10.4]}
41... Nf5+ {[%clk 0:01:02.6]} 42. Kf4 {[%clk 0:00:11.6]} 42... a4 {[%clk
0:00:49.3]} 43. Ba2 {[%clk 0:00:10.2]} 43... Ne7 {[%clk 0:00:42.9]} 44. Rcg1
{[%clk 0:00:10.1]} 44... Rh8 {[%clk 0:00:43.9]} 45. R1g3 {[%clk 0:00:03.2]}
45... Rh6 {[%clk 0:00:41.6]} 46. Rh3 {[%clk 0:00:03.5]} 46... Rd6 {[%clk
0:00:41.4]} 47. h5 {[%clk 0:00:04.6]} 47... gxh5 {[%clk 0:00:37.7]} 48. Rg1
{[%clk 0:00:05.1]} 48... Ng6+ {[%clk 0:00:34.8]} 49. Ke3 {[%clk 0:00:05.7]}
49... h4 {[%clk 0:00:35.7]} 50. Rb1 {[%clk 0:00:04.5]} 50... Kg5 {[%clk
0:00:32.2]} 51. b3 {[%clk 0:00:05.6]} 51... Ne7 {[%clk 0:00:31.2]} 52. bxa4
{[%clk 0:00:06]} 52... Nf5+ {[%clk 0:00:32.3]} 53. Kd2 {[%clk 0:00:06.3]} 53...
bxa4 {[%clk 0:00:33.2]} 54. Rb5 {[%clk 0:00:06.9]} 54... Kg4 {[%clk 0:00:31.1]}
55. Rh1 {[%clk 0:00:07.5]} 55... e3+ {[%clk 0:00:29.3]} 56. fxe3 {[%clk
0:00:07.7]} 56... Ng3 {[%clk 0:00:30.9]} 57. Rh2 {[%clk 0:00:07.9]} 57... f2
{[%clk 0:00:30.1]} 58. Rxf2 {[%clk 0:00:07.9]} 58... Ne4+ {[%clk 0:00:31.4]} 59.
Ke2 {[%clk 0:00:09.4]} 59... Nxf2 {[%clk 0:00:33]} 60. Kxf2 {[%clk 0:00:10.7]}
60... h3 {[%clk 0:00:27.9]} 61. Kg1 {[%clk 0:00:06.5]} 61... Kg3 {[%clk
0:00:21.9]} 62. Bxd5 {[%clk 0:00:06]} 62... h2+ {[%clk 0:00:21.4]} 63. Kh1
{[%clk 0:00:07.3]} 63... Rh5 {[%clk 0:00:21.6]} 64. e4 {[%clk 0:00:07.8]} 64...
Rf6 {[%clk 0:00:22.4]} 65. Rb1 {[%clk 0:00:07.7]} 65... Rf2 {[%clk 0:00:21.5]}
66. c4 {[%clk 0:00:07.7]} 66... Rh8 {[%clk 0:00:21.5]} 67. c5 {[%clk 0:00:04.3]}
67... Rhf8 {[%clk 0:00:22.4]} 68. Bc4 {[%clk 0:00:05.6]} 68... Rc2 {[%clk
0:00:22.1]} 69. Ba6 {[%clk 0:00:05.7]} 69... Rf4 {[%clk 0:00:18.3]} 70. e5
{[%clk 0:00:03.8]} 70... Rxd4 {[%clk 0:00:18.5]} 71. e6 {[%clk 0:00:04.9]} 71...
Rxc5 {[%clk 0:00:18.8]} 72. Re1 {[%clk 0:00:05.1]} 72... Rc7 {[%clk 0:00:18.8]}
73. Bf1 {[%clk 0:00:05.2]} 73... Kf2 {[%clk 0:00:18.5]} 74. Rb1 {[%clk
0:00:05.4]} 74... Re7 {[%clk 0:00:18.6]} 75. Bh3 {[%clk 0:00:04.8]} 75... Rh4
{[%clk 0:00:19]} 76. Kxh2 {[%clk 0:00:05.9]} 76... Reh7 {[%clk 0:00:19.1]} 77.
Rb2+ {[%clk 0:00:06]} 77... Kf3 {[%clk 0:00:19.8]} 78. e7 {[%clk 0:00:03.6]}
78... Rxh3+ {[%clk 0:00:20.5]} 79. Kg1 {[%clk 0:00:05.5]} 79... Rh1# {[%clk
0:00:22.1]} 0-1

[Event "*** Titled Tuesday Blitz"]
[Site "Chess.com"]
[Date "2020.01.07"]
[Round "5"]
[White "tomozupan"]
[Black "djano"]
[Result "0-1"]
[WhiteElo "2190"]
[BlackElo "2400"]
[TimeControl "180+2"]
[EndTime "14:15:15 PST"]
[Termination "djano won by checkmate"]

1. d4 {[%clk 0:03:00.2]} 1... Nf6 {[%clk 0:01:29.5]} 2. Bg5 {[%clk 0:02:37.7]}
2... Ne4 {[%clk 0:01:30.1]} 3. Bf4 {[%clk 0:02:38.2]} 3... e6 {[%clk 0:01:31.2]}
4. f3 {[%clk 0:02:34.7]} 4... Bd6 {[%clk 0:01:32.3]} 5. Bxd6 {[%clk 0:02:29.8]}
5... Nxd6 {[%clk 0:01:34.2]} 6. e4 {[%clk 0:02:30.7]} 6... O-O {[%clk
0:01:35.3]} 7. Bd3 {[%clk 0:02:30.8]} 7... f5 {[%clk 0:01:36.7]} 8. Qe2 {[%clk
0:02:16.9]} 8... fxe4 {[%clk 0:01:35.9]} 9. fxe4 {[%clk 0:02:17.9]} 9... Nc6
{[%clk 0:01:36.1]} 10. Nf3 {[%clk 0:02:16.1]} 10... Rxf3 {[%clk 0:01:36.1]} 11.
Qxf3 {[%clk 0:02:07.7]} 11... Nxd4 {[%clk 0:01:37.2]} 12. Qf2 {[%clk 0:02:08.5]}
12... e5 {[%clk 0:01:35.6]} 13. O-O {[%clk 0:02:04.8]} 13... b6 {[%clk
0:01:36.9]} 14. Nc3 {[%clk 0:01:58.2]} 14... Bb7 {[%clk 0:01:37.9]} 15. Nd5
{[%clk 0:01:59.3]} 15... Ne6 {[%clk 0:01:33.2]} 16. Rae1 {[%clk 0:01:56.5]}
16... Qg5 {[%clk 0:01:28.7]} 17. Qe3 {[%clk 0:01:43.8]} 17... Qd8 {[%clk
0:01:19.6]} 18. Rf2 {[%clk 0:01:42.2]} 18... c6 {[%clk 0:01:14.6]} 19. Nc3
{[%clk 0:01:42.4]} 19... Nf4 {[%clk 0:01:14.4]} 20. Ne2 {[%clk 0:01:42.7]} 20...
Ng6 {[%clk 0:01:08.1]} 21. Ref1 {[%clk 0:01:40.1]} 21... c5 {[%clk 0:01:08.7]}
22. c3 {[%clk 0:01:26.5]} 22... c4 {[%clk 0:01:07.2]} 23. Bc2 {[%clk 0:01:27]}
23... Qh4 {[%clk 0:01:07.4]} 24. Ng3 {[%clk 0:01:08.1]} 24... Nf4 {[%clk
0:00:58.9]} 25. Qd2 {[%clk 0:00:24]} 25... Nf7 {[%clk 0:00:42.9]} 26. Nf5 {[%clk
0:00:18.5]} 26... Qd8 {[%clk 0:00:41.9]} 27. Rd1 {[%clk 0:00:18.7]} 27... d5
{[%clk 0:00:42.7]} 28. exd5 {[%clk 0:00:18.6]} 28... Qg5 {[%clk 0:00:36.7]} 29.
Ng3 {[%clk 0:00:10]} 29... Rd8 {[%clk 0:00:34.4]} 30. Qe1 {[%clk 0:00:03.1]}
30... Bxd5 {[%clk 0:00:31.3]} 31. Ne4 {[%clk 0:00:04.1]} 31... Qg6 {[%clk
0:00:32.1]} 32. Ng3 {[%clk 0:00:03.5]} 32... Qg5 {[%clk 0:00:32.6]} 33. Ne4
{[%clk 0:00:04.5]} 33... Qh6 {[%clk 0:00:33.5]} 34. Ng3 {[%clk 0:00:03.8]} 34...
Re8 {[%clk 0:00:31.7]} 35. Qd2 {[%clk 0:00:03]} 35... Bc6 {[%clk 0:00:28.6]} 36.
Nf5 {[%clk 0:00:02.6]} 36... Qg5 {[%clk 0:00:27.9]} 37. Ng3 {[%clk 0:00:03.8]}
37... Rd8 {[%clk 0:00:27]} 38. Qe1 {[%clk 0:00:04.8]} 38... Nd3 {[%clk
0:00:26.9]} 39. Bxd3 {[%clk 0:00:05.6]} 39... cxd3 {[%clk 0:00:28.8]} 40. Qd2
{[%clk 0:00:06.6]} 40... Qxd2 {[%clk 0:00:28.3]} 41. Rfxd2 {[%clk 0:00:05.2]}
41... e4 {[%clk 0:00:30.2]} 42. Kf2 {[%clk 0:00:06.3]} 42... Ne5 {[%clk
0:00:31.1]} 43. Ke3 {[%clk 0:00:06.7]} 43... Nc4+ {[%clk 0:00:32]} 44. Kf4
{[%clk 0:00:07.1]} 44... Rf8+ {[%clk 0:00:31.6]} 45. Kg4 {[%clk 0:00:07.6]}
45... Ne3+ {[%clk 0:00:31.8]} 46. Kh3 {[%clk 0:00:07.4]} 46... Bd7+ {[%clk
0:00:31.9]} 47. Kh4 {[%clk 0:00:08.1]} 47... Rf4+ {[%clk 0:00:31.9]} 48. Kg5
{[%clk 0:00:08.5]} 48... Rg4+ {[%clk 0:00:32.4]} 49. Kh5 {[%clk 0:00:09.6]}
49... g6+ {[%clk 0:00:29.8]} 50. Kh6 {[%clk 0:00:10.3]} 50... Nxd1 {[%clk
0:00:25.6]} 51. Rxd1 {[%clk 0:00:11.3]} 51... Bc6 {[%clk 0:00:20.3]} 52. b4
{[%clk 0:00:10.3]} 52... Rh4+ {[%clk 0:00:20.8]} 53. Kg5 {[%clk 0:00:10.8]}
53... Rxh2 {[%clk 0:00:21.9]} 54. Rd2 {[%clk 0:00:10.5]} 54... Kg7 {[%clk
0:00:21.4]} 55. Kf4 {[%clk 0:00:11.3]} 55... Rh4+ {[%clk 0:00:20.3]} 56. Ke3
{[%clk 0:00:12.4]} 56... Rg4 {[%clk 0:00:21.7]} 57. Nf1 {[%clk 0:00:11.3]} 57...
Rg3+ {[%clk 0:00:22.3]} 58. Kf4 {[%clk 0:00:11.9]} 58... e3 {[%clk 0:00:19.9]}
59. Nxe3 {[%clk 0:00:12.3]} 59... Rxe3 {[%clk 0:00:14.7]} 60. Kxe3 {[%clk
0:00:11.9]} 60... Bb5 {[%clk 0:00:16.3]} 61. a4 {[%clk 0:00:12.2]} 61... Bc4
{[%clk 0:00:17.3]} 62. Kd4 {[%clk 0:00:12.6]} 62... b5 {[%clk 0:00:18.7]} 63. a5
{[%clk 0:00:12.9]} 63... g5 {[%clk 0:00:19.3]} 64. Kc5 {[%clk 0:00:13.7]} 64...
g4 {[%clk 0:00:19.7]} 65. Kc6 {[%clk 0:00:14.2]} 65... h5 {[%clk 0:00:20.2]} 66.
Kb7 {[%clk 0:00:15.2]} 66... h4 {[%clk 0:00:21.7]} 67. Kxa7 {[%clk 0:00:16.2]}
67... g3 {[%clk 0:00:22.5]} 68. Kb6 {[%clk 0:00:16]} 68... Bd5 {[%clk
0:00:23.5]} 69. Kxb5 {[%clk 0:00:15.2]} 69... Bxg2 {[%clk 0:00:24.5]} 70. Rxg2
{[%clk 0:00:14.8]} 70... d2 {[%clk 0:00:25.9]} 71. Rxd2 {[%clk 0:00:15.1]} 71...
h3 {[%clk 0:00:27.6]} 72. a6 {[%clk 0:00:10]} 72... h2 {[%clk 0:00:27.8]} 73.
Rd1 {[%clk 0:00:04.3]} 73... g2 {[%clk 0:00:29.2]} 74. a7 {[%clk 0:00:05.1]}
74... h1=Q {[%clk 0:00:30.5]} 75. Rd7+ {[%clk 0:00:04.8]} 75... Kf6 {[%clk
0:00:30.1]} 76. a8=Q {[%clk 0:00:05.8]} 76... Qf1+ {[%clk 0:00:30.8]} 77. Kb6
{[%clk 0:00:05.8]} 77... g1=Q+ {[%clk 0:00:31]} 78. Rd4 {[%clk 0:00:06.7]} 78...
Qf5 {[%clk 0:00:29]} 79. Qf8+ {[%clk 0:00:04]} 79... Kg5 {[%clk 0:00:30.3]} 80.
Qg7+ {[%clk 0:00:03.6]} 80... Qg6+ {[%clk 0:00:30.7]} 81. Qxg6+ {[%clk
0:00:04.5]} 81... Kxg6 {[%clk 0:00:32.6]} 82. Kc5 {[%clk 0:00:05.8]} 82... Qe3
{[%clk 0:00:33.3]} 83. Kc4 {[%clk 0:00:06.3]} 83... Kf6 {[%clk 0:00:34.1]} 84.
Kc5 {[%clk 0:00:07.4]} 84... Ke5 {[%clk 0:00:34.9]} 85. Kc4 {[%clk 0:00:08.1]}
85... Qe2+ {[%clk 0:00:34]} 86. Kb3 {[%clk 0:00:08.7]} 86... Qe1 {[%clk
0:00:31.9]} 87. Kb2 {[%clk 0:00:09.2]} 87... Qf2+ {[%clk 0:00:32.4]} 88. Kb3
{[%clk 0:00:10.2]} 88... Qg2 {[%clk 0:00:33.3]} 89. Kc4 {[%clk 0:00:11.1]} 89...
Qa2+ {[%clk 0:00:34.1]} 90. Kd3 {[%clk 0:00:12]} 90... Qb3 {[%clk 0:00:34.9]}
91. Kd2 {[%clk 0:00:12.6]} 91... Qb2+ {[%clk 0:00:35.3]} 92. Kd3 {[%clk
0:00:13.8]} 92... Qc1 {[%clk 0:00:36.7]} 93. Kc4 {[%clk 0:00:14.4]} 93... Qc2
{[%clk 0:00:36.9]} 94. Rd5+ {[%clk 0:00:08.5]} 94... Ke6 {[%clk 0:00:38.1]} 95.
Rd4 {[%clk 0:00:09.5]} 95... Qe2+ {[%clk 0:00:39.3]} 96. Kb3 {[%clk 0:00:09]}
96... Qb5 {[%clk 0:00:39.9]} 97. Kc2 {[%clk 0:00:09.5]} 97... Ke5 {[%clk
0:00:39.7]} 98. Kb3 {[%clk 0:00:10.4]} 98... Qf1 {[%clk 0:00:40.6]} 99. Kc2
{[%clk 0:00:10.4]} 99... Qa1 {[%clk 0:00:41.6]} 100. Kb3 {[%clk 0:00:10.8]}
100... Qb1+ {[%clk 0:00:42.9]} 101. Kc4 {[%clk 0:00:11.7]} 101... Qc2 {[%clk
0:00:44.3]} 102. Rd5+ {[%clk 0:00:12]} 102... Ke6 {[%clk 0:00:45.4]} 103. Rd4
{[%clk 0:00:12.9]} 103... Qa4 {[%clk 0:00:46.8]} 104. Kd3 {[%clk 0:00:13.5]}
104... Qb3 {[%clk 0:00:47.6]} 105. Kd2 {[%clk 0:00:14]} 105... Ke5 {[%clk
0:00:48.6]} 106. Kd3 {[%clk 0:00:14.7]} 106... Qb2 {[%clk 0:00:49.4]} 107. Kc4
{[%clk 0:00:14.8]} 107... Qe2+ {[%clk 0:00:48.6]} 108. Kb3 {[%clk 0:00:14.8]}
108... Qa6 {[%clk 0:00:49.6]} 109. Kc2 {[%clk 0:00:15]} 109... Qa2+ {[%clk
0:00:49.7]} 110. Kd3 {[%clk 0:00:14.9]} 110... Qb3 {[%clk 0:00:51.2]} 111. Kd2
{[%clk 0:00:15.4]} 111... Qb1 {[%clk 0:00:50.3]} 112. Rd3 {[%clk 0:00:06]}
112... Ke4 {[%clk 0:00:48.1]} 113. Rd4+ {[%clk 0:00:06.6]} 113... Kf3 {[%clk
0:00:49.6]} 114. Rd3+ {[%clk 0:00:07.4]} 114... Kf2 {[%clk 0:00:51.1]} 115. Rd4
{[%clk 0:00:08.4]} 115... Qb3 {[%clk 0:00:49.2]} 116. Rf4+ {[%clk 0:00:07.7]}
116... Kg3 {[%clk 0:00:49.7]} 117. Rd4 {[%clk 0:00:08]} 117... Kf3 {[%clk
0:00:51.4]} 118. Rd3+ {[%clk 0:00:08.6]} 118... Kf2 {[%clk 0:00:52.6]} 119. Rd4
{[%clk 0:00:09.3]} 119... Qb2+ {[%clk 0:00:52.6]} 120. Kd3 {[%clk 0:00:09.9]}
120... Qe2# {[%clk 0:00:53.7]} 0-1

[Event "*** Titled Tuesday Blitz"]
[Site "Chess.com"]
[Date "2020.01.07"]
[Round "6"]
[White "djano"]
[Black "Colombiano07"]
[Result "1-0"]
[WhiteElo "2408"]
[BlackElo "2177"]
[TimeControl "180+2"]
[EndTime "14:18:30 PST"]
[Termination "djano won by resignation"]

1. c4 {[%clk 0:02:15.7]} 1... b6 {[%clk 0:02:57.6]} 2. Nc3 {[%clk 0:02:16.2]}
2... Bb7 {[%clk 0:02:58.8]} 3. Nf3 {[%clk 0:02:17.6]} 3... Nf6 {[%clk
0:02:59.4]} 4. g3 {[%clk 0:02:18.1]} 4... c5 {[%clk 0:02:59.9]} 5. Bg2 {[%clk
0:02:20]} 5... e6 {[%clk 0:03:01.5]} 6. d4 {[%clk 0:02:21.3]} 6... cxd4 {[%clk
0:03:02.4]} 7. Qxd4 {[%clk 0:02:23.2]} 7... d6 {[%clk 0:03:03]} 8. O-O {[%clk
0:02:23.5]} 8... Be7 {[%clk 0:03:04.4]} 9. Rd1 {[%clk 0:02:24.6]} 9... O-O
{[%clk 0:03:05.2]} 10. b3 {[%clk 0:02:26.2]} 10... Nbd7 {[%clk 0:03:06.1]} 11.
Bb2 {[%clk 0:02:26.9]} 11... a6 {[%clk 0:03:07.1]} 12. Ng5 {[%clk 0:02:28.1]}
12... Bxg2 {[%clk 0:03:05.3]} 13. Kxg2 {[%clk 0:02:29.6]} 13... Qc7 {[%clk
0:03:04.8]} 14. Nge4 {[%clk 0:02:30.1]} 14... Nxe4 {[%clk 0:03:04.9]} 15. Nd5
{[%clk 0:02:01.8]} 15... e5 {[%clk 0:02:39.9]} 16. Nxe7+ {[%clk 0:02:00.7]}
16... Kh8 {[%clk 0:02:40.3]} 17. Qxe4 {[%clk 0:02:02.1]} 17... Nc5 {[%clk
0:02:34.7]} 18. Nd5 {[%clk 0:02:00.2]} 18... Nxe4 {[%clk 0:02:35.6]} 19. Nxc7
{[%clk 0:02:01.2]} 1-0

[Event "*** Titled Tuesday Blitz"]
[Site "Chess.com"]
[Date "2020.01.07"]
[Round "6"]
[White "WelshTiger"]
[Black "Saloni1299"]
[Result "1-0"]
[WhiteElo "2381"]
[BlackElo "2118"]
[TimeControl "180+2"]
[EndTime "14:18:34 PST"]
[Termination "WelshTiger won by checkmate"]

1. e4 {[%clk 0:03:01.9]} 1... e6 {[%clk 0:03:00.3]} 2. d4 {[%clk 0:03:02.7]}
2... d5 {[%clk 0:03:00.6]} 3. Nd2 {[%clk 0:03:04.6]} 3... h6 {[%clk 0:02:51.6]}
4. Ngf3 {[%clk 0:02:53.9]} 4... Nf6 {[%clk 0:02:50.1]} 5. Bd3 {[%clk 0:02:52.8]}
5... Nfd7 {[%clk 0:02:51.6]} 6. O-O {[%clk 0:02:51.3]} 6... dxe4 {[%clk
0:02:46.1]} 7. Nxe4 {[%clk 0:02:51.6]} 7... Be7 {[%clk 0:02:40.2]} 8. c3 {[%clk
0:02:40]} 8... c5 {[%clk 0:02:36.7]} 9. Re1 {[%clk 0:02:32.3]} 9... cxd4 {[%clk
0:02:33.6]} 10. Nxd4 {[%clk 0:02:33.3]} 10... b6 {[%clk 0:02:27.8]} 11. Qh5
{[%clk 0:02:32]} 11... O-O {[%clk 0:02:13.6]} 12. Bxh6 {[%clk 0:02:09]} 12...
gxh6 {[%clk 0:02:08.8]} 13. Qxh6 {[%clk 0:02:10]} 13... Ne5 {[%clk 0:02:08]} 14.
Nf6+ {[%clk 0:02:04.5]} 14... Bxf6 {[%clk 0:02:05.8]} 15. Qh7# {[%clk 0:02:04]}
1-0